fUST/lending_fUST_20250819
["ID","MTS","AMOUNT","RATE_DAILY","PERIOD"]
[380218372,1755613883448,-1153.09,0.00023835,2]
[380218373,1755613883459,-967.55,0.00023835,2]
[380218374,1755613883469,-885.39,0.00023835,2]
[380218375,1755613883564,-2882.8,0.00023835,2]
[380218376,1755613883574,-513.1,0.00023835,2]
[380218377,1755613883585,-3841.02,0.00023835,2]
[380218378,1755613883594,-493.52,0.00023835,2]
[380218379,1755613883604,-846.97,0.00023835,2]
[380218380,1755613883614,-645.92,0.00023835,2]
[380218381,1755613883623,-570.68,0.00023835,2]
[380218382,1755613883633,-1307.34,0.00023835,2]
[380218383,1755613883642,-518.17,0.00023835,2]
[380218384,1755613883652,-1084.74,0.00023835,2]
[380218385,1755613883662,-665.98,0.00023835,2]
[380218386,1755613883672,-486.91,0.00023835,2]
[380218387,1755613883681,-2187.7,0.00023835,2]
[380218388,1755613883691,-685.15,0.00023835,2]
[380218389,1755613883701,-1639.56,0.00023835,2]
[380218390,1755613883711,-869.33,0.00023835,2]
[380218391,1755613883720,-777.85,0.00023835,2]
[380218392,1755613883731,-11332.24,0.00023835,2]
[380218393,1755613883740,-1521.65,0.00023835,2]
[380218394,1755613883756,-691.74,0.00023835,2]
[380218395,1755613883765,-2082.42,0.00023835,2]
[380218396,1755613883774,-1024.36,0.00023835,2]
[380218397,1755613883784,-785.88,0.00023835,2]
[380218398,1755613883794,-806.64,0.00023835,2]
[380218399,1755613883804,-480.0,0.00023835,2]
[380218400,1755613883814,-480.0,0.00023835,2]
[380218401,1755613883824,-897.44,0.00023835,2]
[380218402,1755613883834,-414.71,0.00023835,2]
[380218403,1755613883844,-583.0,0.00023836,2]
[380218404,1755613883855,-365.85666853,0.000239,2]
[380218405,1755613883865,-849.6748817,0.00023973,2]
[380218406,1755613883876,-432.1534747,0.00023973,2]
[380218407,1755613883886,-432.1534747,0.00023973,2]
[380218408,1755613883896,-432.1534747,0.00023973,2]
[380218409,1755613883906,-906.47026741,0.00024,5]
[380218410,1755613883916,-160.0,0.00024,7]
[380218411,1755613883926,-1000.0,0.00024,3]
[380218412,1755613883936,-160.0,0.00024,3]
[380218413,1755613883946,-10190.29107139,0.00024,2]
[380218414,1755613883955,-160.0,0.00024,7]
[380218415,1755613883965,-160.0,0.00024,7]
[380218416,1755613883975,-160.0,0.00024,7]
[380218417,1755613883985,-232.21311493,0.00024,7]
[380218418,1755613883994,-216.8835046,0.00024,7]
[380218419,1755613884011,-160.0,0.00024,7]
[380218420,1755613884021,-160.0,0.00024,7]
[380218421,1755613884032,-160.0,0.00024,7]
[380218422,1755613884042,-215.79176414,0.00024,3]
[380218423,1755613884052,-843.93972674,0.00024,7]
[380218424,1755613884062,-154.692496,0.00024009,2]
[380218425,1755613884072,-10237.67817977,0.00024027,2]
[380218426,1755613884082,-5000.0,0.00024061,2]
[380218427,1755613884091,-586.70464481,0.00024094,2]
[380218428,1755613884102,-480.0,0.00024109,2]
[380218429,1755613884112,-514.56,0.00024109,2]
[380218430,1755613884122,-2620.24,0.00024109,2]
[380218431,1755613884132,-480.0,0.00024109,2]
[380218432,1755613884143,-1891.29,0.00024109,2]
[380218433,1755613884153,-547.4,0.00024109,2]
[380218434,1755613884164,-480.0,0.00024109,2]
[380218435,1755613884175,-533.31,0.00024109,2]
[380218436,1755613884186,-480.0,0.00024109,2]
[380218437,1755613884196,-732.56,0.00024109,2]
[380218438,1755613884206,-480.0,0.00024109,2]
[380218439,1755613884216,-506.69,0.00024109,2]
[380218440,1755613884226,-527.11455545,0.00024109,2]
[380218441,1755613884237,-583.2,0.00024109,2]
[380218442,1755613884251,-480.0,0.00024109,2]
[380218443,1755613884267,-480.0,0.00024109,2]
[380218444,1755613884290,-1286.2,0.00024109,2]
[380218445,1755613884309,-1476.73,0.00024109,2]
[380218446,1755613884330,-614.35,0.00024109,2]
[380218447,1755613884360,-1204.0,0.00024109,2]
[380218448,1755613884388,-584.32,0.00024109,2]
[380218449,1755613884410,-1958.67,0.00024109,2]
[380218450,1755613884430,-991.24,0.00024109,2]
[380218451,1755613884447,-6821.03,0.00024109,2]
[380218452,1755613884468,-519.5,0.00024109,2]
[380218453,1755613884492,-528.46,0.00024109,2]
[380218454,1755613884520,-571.37,0.00024109,2]
[380218455,1755613884539,-298.19008642,0.00024109,2]
[380218456,1755613884558,-2319.3,0.00024109,2]
[380218457,1755613884576,-9592.27,0.00024109,2]
[380218458,1755613884597,-665.67,0.00024109,2]
[380218459,1755613884621,-868.36,0.00024109,2]
[380218460,1755613884642,-480.0,0.00024109,2]
[380218461,1755613884663,-1062.99,0.00024109,2]
[380218462,1755613884684,-597.86,0.00024109,2]
[380218463,1755613884704,-774.12,0.00024109,2]
[380218464,1755613884722,-666.95,0.00024109,2]
[380218465,1755613884741,-243.15,0.00024109,2]
[380218466,1755613884764,-2568.04,0.00024109,2]
[380218467,1755613884781,-534.72,0.00024109,2]
[380218468,1755613884799,-1648.41,0.00024109,2]
[380218469,1755613884818,-646.52,0.00024109,2]
[380218470,1755613884836,-1496.02,0.00024109,2]
[380218471,1755613884853,-1947.41,0.00024109,2]
[380218472,1755613884870,-1530.12,0.00024109,2]
[380218473,1755613884886,-1222.28,0.00024109,2]
[380218474,1755613884903,-534.48,0.00024109,2]
[380218475,1755613884918,-726.33,0.00024109,2]
[380218476,1755613884934,-603.12,0.00024109,2]
[380218477,1755613884951,-1170.35,0.00024109,2]
[380218478,1755613884966,-246.41391525,0.00024109,2]
[380218479,1755613884982,-480.0,0.00024109,2]
[380218480,1755613885001,-1177.29,0.00024109,2]
[380218481,1755613885016,-1014.46,0.00024109,2]
[380218482,1755613885031,-722.89,0.00024109,2]
[380218483,1755613885047,-936.91,0.00024109,2]
[380218484,1755613885063,-480.0,0.00024109,2]
[380218485,1755613885074,-3243.1,0.00024109,2]
[380218486,1755613885084,-1029.92,0.00024109,2]
[380218487,1755613885094,-1138.77,0.00024109,2]
[380218488,1755613885104,-977.82,0.00024109,2]
[380218489,1755613885114,-932.49,0.00024109,2]
[380218490,1755613885124,-1153.09,0.00024109,2]
[380218491,1755613885135,-967.55,0.00024109,2]
[380218492,1755613885145,-885.39,0.00024109,2]
[380218493,1755613885156,-2882.8,0.00024109,2]
[380218494,1755613885168,-513.1,0.00024109,2]
[380218495,1755613885179,-3841.02,0.00024109,2]
[380218496,1755613885190,-493.52,0.00024109,2]
[380218497,1755613885201,-846.97,0.00024109,2]
[380218498,1755613885212,-645.92,0.00024109,2]
[380218499,1755613885222,-570.68,0.00024109,2]
[380218500,1755613885233,-1307.34,0.00024109,2]
[380218501,1755613885244,-518.17,0.00024109,2]
[380218502,1755613885260,-1084.74,0.00024109,2]
[380218503,1755613885270,-665.98,0.00024109,2]
[380218504,1755613885280,-486.91,0.00024109,2]
[380218505,1755613885290,-2187.7,0.00024109,2]
[380218506,1755613885300,-685.15,0.00024109,2]
[380218507,1755613885309,-1639.56,0.00024109,2]
[380218508,1755613885319,-869.33,0.00024109,2]
[380218509,1755613885328,-777.85,0.00024109,2]
[380218510,1755613885341,-11332.24,0.00024109,2]
[380218511,1755613885353,-1521.65,0.00024109,2]
[380218512,1755613885631,-691.74,0.00024109,2]
[380218513,1755613885651,-2082.42,0.00024109,2]
[380218514,1755613885660,-1024.36,0.00024109,2]
[380218515,1755613885670,-785.88,0.00024109,2]
[380218516,1755613885680,-806.64,0.00024109,2]
[380218517,1755613885690,-188.76941547,0.00024109,2]
[380218518,1755613885699,-480.0,0.00024109,2]
[380218519,1755613885708,-897.44,0.00024109,2]
[380218520,1755613885717,-583.0,0.0002411,2]
[380218521,1755613885728,-353.39902139,0.00024114,77]
[380218522,1755613885738,-4500.0,0.00024156,2]
[380218523,1755613885748,-164.0,0.00024164,7]
[380218524,1755613885762,-587.5886558,0.00024247,2]
[380218525,1755613885772,-580.6760442,0.00024247,2]
[380218526,1755613885781,-209.0,0.0002425,10]
[380218527,1755613885791,-860.0,0.00024269,2]
[380218528,1755613885800,-155.44,0.00024375,7]
[380218529,1755613885810,-1107.7,0.00024375,7]
[380218530,1755613885819,-275.00094035,0.00024383,2]
[380218531,1755613885829,-514.56,0.00024383,2]
[380218532,1755613885839,-2620.24,0.00024383,2]
[380218533,1755613885848,-447.94,0.00024383,2]
[380218534,1755613885857,-1891.29,0.00024383,2]
[380218535,1755613885868,-547.4,0.00024383,2]
[380218536,1755613885878,-205.21389296,0.00024383,2]
[380218537,1755613885887,-533.31,0.00024383,2]
[380218538,1755613885896,-480.0,0.00024383,2]
[380218539,1755613885906,-732.56,0.00024383,2]
[380218540,1755613885915,-480.0,0.00024383,2]
[380218541,1755613885924,-506.69,0.00024383,2]
[380218542,1755613885934,-583.2,0.00024383,2]
[380218543,1755613885943,-546.58662685,0.00024383,2]
[380218544,1755613885953,-480.0,0.00024383,2]
[380218545,1755613885963,-1286.2,0.00024383,2]
[380218546,1755613885972,-1476.73,0.00024383,2]
[380218547,1755613885982,-614.35,0.00024383,2]
[380218548,1755613885992,-1204.0,0.00024383,2]
[380218549,1755613886004,-584.32,0.00024383,2]
[380218550,1755613886014,-1958.67,0.00024383,2]
[380218551,1755613886024,-991.24,0.00024383,2]
[380218552,1755613886033,-6821.03,0.00024383,2]
[380218553,1755613886043,-519.5,0.00024383,2]
[380218554,1755613886053,-528.46,0.00024383,2]
[380218555,1755613886063,-571.37,0.00024383,2]
[380218556,1755613886072,-2319.3,0.00024383,2]
[380218557,1755613886082,-9592.27,0.00024383,2]
[380218558,1755613886091,-665.67,0.00024383,2]
[380218559,1755613886101,-868.36,0.00024383,2]
[380218560,1755613886111,-447.84031664,0.00024383,2]
[380218561,1755613886120,-1062.99,0.00024383,2]
[380218562,1755613886129,-597.86,0.00024383,2]
[380218563,1755613886139,-774.12,0.00024383,2]
[380218564,1755613886148,-666.95,0.00024383,2]
[380218565,1755613886158,-2568.04,0.00024383,2]
[380218566,1755613886167,-534.72,0.00024383,2]
[380218567,1755613886177,-1648.41,0.00024383,2]
[380218568,1755613886186,-646.52,0.00024383,2]
[380218569,1755613886196,-1496.02,0.00024383,2]
[380218570,1755613886205,-1947.41,0.00024383,2]
[380218571,1755613886215,-1530.12,0.00024383,2]
[380218572,1755613886225,-1222.28,0.00024383,2]
[380218573,1755613886234,-534.48,0.00024383,2]
[380218574,1755613886244,-726.33,0.00024383,2]
[380218575,1755613886261,-603.12,0.00024383,2]
[380218576,1755613886272,-1170.35,0.00024383,2]
[380218577,1755613886282,-480.0,0.00024383,2]
[380218578,1755613886292,-1177.29,0.00024383,2]
[380218579,1755613886302,-1014.46,0.00024383,2]
[380218580,1755613886312,-722.89,0.00024383,2]
[380218581,1755613886322,-936.91,0.00024383,2]
[380218582,1755613886332,-262.34356342,0.00024383,2]
[380218583,1755613886346,-3243.1,0.00024383,2]
[380218584,1755613886356,-1029.92,0.00024383,2]
[380218585,1755613886366,-1138.77,0.00024383,2]
[380218586,1755613886375,-977.82,0.00024383,2]
[380218587,1755613886387,-932.49,0.00024383,2]
[380218588,1755613886397,-1153.09,0.00024383,2]
[380218589,1755613886406,-967.55,0.00024383,2]
[380218590,1755613886417,-885.39,0.00024383,2]
[380218591,1755613886429,-2882.8,0.00024383,2]
[380218592,1755613886439,-513.1,0.00024383,2]
[380218593,1755613886449,-3841.02,0.00024383,2]
[380218594,1755613886460,-493.52,0.00024383,2]
[380218595,1755613886470,-846.97,0.00024383,2]
[380218596,1755613886481,-645.92,0.00024383,2]
[380218597,1755613886492,-570.68,0.00024383,2]
[380218598,1755613886509,-1307.34,0.00024383,2]
[380218599,1755613886519,-1084.74,0.00024383,2]
[380218600,1755613886529,-518.17,0.00024383,2]
[380218601,1755613886540,-665.98,0.00024383,2]
[380218602,1755613886549,-486.91,0.00024383,2]
[380218603,1755613886560,-2187.7,0.00024383,2]
[380218604,1755613886570,-685.15,0.00024383,2]
[380218605,1755613886580,-1639.56,0.00024383,2]
[380218606,1755613886591,-869.33,0.00024383,2]
[380218607,1755613886601,-777.85,0.00024383,2]
[380218608,1755613886611,-11332.24,0.00024383,2]
[380218609,1755613886621,-1521.65,0.00024383,2]
[380218610,1755613886631,-691.74,0.00024383,2]
[380218611,1755613886640,-2082.42,0.00024383,2]
[380218612,1755613886650,-1024.36,0.00024383,2]
[380218613,1755613886660,-785.88,0.00024383,2]
[380218614,1755613886671,-806.64,0.00024383,2]
[380218615,1755613886681,-480.0,0.00024383,2]
[380218616,1755613886692,-897.44,0.00024383,2]
[380218617,1755613886703,-583.0,0.00024384,2]
[380218618,1755613886714,-500.0,0.00024429,2]
[380218619,1755613886724,-10237.67817977,0.00024439,2]
[380218620,1755613886735,-1107.7,0.00024475,7]
[380218621,1755613886746,-155.46,0.00024495,7]
[380218622,1755613886763,-1133.48,0.000245,7]
[380218623,1755613886773,-15940.2,0.000245,7]
[380218624,1755613886784,-706.0,0.000245,3]
[380218625,1755613886795,-12685.85563623,0.000245,7]
[380218626,1755613886804,-12685.85563623,0.000245,3]
[380218627,1755613886814,-160.0,0.000245,3]
[380218628,1755613886824,-160.0,0.000245,3]
[380218629,1755613886835,-160.0,0.000245,3]
[380218630,1755613886846,-232.21311493,0.000245,3]
[380218631,1755613886856,-232.21311493,0.000245,7]
[380218632,1755613886866,-216.8835046,0.000245,3]
[380218633,1755613886876,-216.8835046,0.000245,7]
[380218634,1755613886887,-160.0,0.000245,3]
[380218635,1755613886899,-160.0,0.000245,7]
[380218636,1755613886910,-160.0,0.000245,3]
[380218637,1755613886920,-160.0,0.000245,7]
[380218638,1755613886931,-375.88899365,0.000245,3]
[380218639,1755613886941,-375.88899365,0.000245,7]
[380218640,1755613886952,-160.0,0.000245,3]
[380218641,1755613886963,-160.0,0.000245,3]
[380218642,1755613886973,-160.0,0.000245,3]
[380218643,1755613886983,-528.6845513,0.000245,3]
[380218644,1755613886994,-215.79176414,0.000245,3]
[380218645,1755613887013,-215.79176414,0.000245,7]
[380218646,1755613887024,-417.15472785,0.000245,3]
[380218647,1755613887035,-843.93972674,0.000245,3]
[380218648,1755613887047,-417.15472785,0.000245,7]
[380218649,1755613887057,-843.93972674,0.000245,7]
[380218650,1755613887068,-155.45,0.00024516,7]
[380218651,1755613887078,-454.78,0.00024556,2]
[380218652,1755613887088,-1107.7,0.00024575,7]
[380218653,1755613887099,-39142.3,0.000246,2]
[380218654,1755613887111,-5896.98,0.000246,7]
[380218655,1755613887121,-155.45,0.00024616,7]
[380218656,1755613887131,-514.56,0.00024657,2]
[380218657,1755613887143,-2620.24,0.00024657,2]
[380218658,1755613887153,-1891.29,0.00024657,2]
[380218659,1755613887164,-547.4,0.00024657,2]
[380218660,1755613887174,-533.31,0.00024657,2]
[380218661,1755613887185,-368.14,0.00024657,2]
[380218662,1755613887196,-732.56,0.00024657,2]
[380218663,1755613887206,-480.0,0.00024657,2]
[380218664,1755613887216,-506.69,0.00024657,2]
[380218665,1755613887226,-583.2,0.00024657,2]
[380218666,1755613887237,-480.0,0.00024657,2]
[380218667,1755613887247,-1286.2,0.00024657,2]
[380218668,1755613887265,-1476.73,0.00024657,2]
[380218669,1755613887274,-614.35,0.00024657,2]
[380218670,1755613887284,-1204.0,0.00024657,2]
[380218671,1755613887294,-584.32,0.00024657,2]
[380218672,1755613887304,-1958.67,0.00024657,2]
[380218673,1755613887314,-991.24,0.00024657,2]
[380218674,1755613887324,-6821.03,0.00024657,2]
[380218675,1755613887334,-519.5,0.00024657,2]
[380218676,1755613887354,-528.46,0.00024657,2]
[380218677,1755613887371,-571.37,0.00024657,2]
[380218678,1755613887382,-2319.3,0.00024657,2]
[380218679,1755613887392,-9592.27,0.00024657,2]
[380218680,1755613887403,-665.67,0.00024657,2]
[380218681,1755613887413,-868.36,0.00024657,2]
[380218682,1755613887423,-1062.99,0.00024657,2]
[380218683,1755613887433,-597.86,0.00024657,2]
[380218684,1755613887443,-774.12,0.00024657,2]
[380218685,1755613887453,-666.95,0.00024657,2]
[380218686,1755613887464,-2568.04,0.00024657,2]
[380218687,1755613887474,-534.72,0.00024657,2]
[380218688,1755613887484,-1648.41,0.00024657,2]
[380218689,1755613887494,-646.52,0.00024657,2]
[380218690,1755613887514,-1496.02,0.00024657,2]
[380218691,1755613887524,-1947.41,0.00024657,2]
[380218692,1755613887534,-1530.12,0.00024657,2]
[380218693,1755613887544,-1222.28,0.00024657,2]
[380218694,1755613887554,-534.48,0.00024657,2]
[380218695,1755613887564,-726.33,0.00024657,2]
[380218696,1755613887575,-603.12,0.00024657,2]
[380218697,1755613887585,-1170.35,0.00024657,2]
[380218698,1755613887595,-480.0,0.00024657,2]
[380218699,1755613887605,-1177.29,0.00024657,2]
[380218700,1755613887615,-1014.46,0.00024657,2]
[380218701,1755613887625,-722.89,0.00024657,2]
[380218702,1755613887635,-936.91,0.00024657,2]
[380218703,1755613887645,-3243.1,0.00024657,2]
[380218704,1755613887655,-1029.92,0.00024657,2]
[380218705,1755613887666,-1138.77,0.00024657,2]
[380218706,1755613887676,-977.82,0.00024657,2]
[380218707,1755613887686,-1153.09,0.00024657,2]
[380218708,1755613887696,-932.49,0.00024657,2]
[380218709,1755613887706,-967.55,0.00024657,2]
[380218710,1755613887716,-885.39,0.00024657,2]
[380218711,1755613887725,-2882.8,0.00024657,2]
[380218712,1755613887735,-513.1,0.00024657,2]
[380218713,1755613887745,-3841.02,0.00024657,2]
[380218714,1755613887762,-493.52,0.00024657,2]
[380218715,1755613887772,-846.97,0.00024657,2]
[380218716,1755613887782,-645.92,0.00024657,2]
[380218717,1755613887792,-570.68,0.00024657,2]
[380218718,1755613887802,-1307.34,0.00024657,2]
[380218719,1755613887812,-1084.74,0.00024657,2]
[380218720,1755613887822,-518.17,0.00024657,2]
[380218721,1755613887832,-665.98,0.00024657,2]
[380218722,1755613887844,-486.91,0.00024657,2]
[380218723,1755613887854,-2187.7,0.00024657,2]
[380218724,1755613887864,-685.15,0.00024657,2]
[380218725,1755613887873,-1639.56,0.00024657,2]
[380218726,1755613887884,-869.33,0.00024657,2]
[380218727,1755613887894,-777.85,0.00024657,2]
[380218728,1755613887906,-11332.24,0.00024657,2]
[380218729,1755613887916,-1521.65,0.00024657,2]
[380218730,1755613887926,-691.74,0.00024657,2]
[380218731,1755613887936,-2082.42,0.00024657,2]
[380218732,1755613887945,-1024.36,0.00024657,2]
[380218733,1755613887955,-785.88,0.00024657,2]
[380218734,1755613887964,-806.64,0.00024657,2]
[380218735,1755613887974,-480.0,0.00024657,2]
[380218736,1755613887983,-897.44,0.00024657,2]
[380218737,1755613887993,-150.0,0.00024658,2]
[380218738,1755613888009,-150.0,0.00024658,2]
[380218739,1755613888019,-380.0,0.00024658,2]
[380218740,1755613888029,-200.0,0.00024658,15]
[380218741,1755613888039,-583.0,0.00024658,2]
[380218742,1755613888050,-500.0,0.00024658,2]
[380218743,1755613888060,-3225.61,0.0002466,2]
[380218744,1755613888069,-1107.7,0.00024675,7]
[380218745,1755613888079,-5000.0,0.00024704,2]
[380218746,1755613888089,-1778.98113468,0.00024715,2]
[380218747,1755613888099,-155.45,0.00024716,7]
[380218748,1755613888108,-1107.7,0.00024775,7]
[380218749,1755613888119,-406.8685662,0.00024795,2]
[380218750,1755613888129,-41914.64720897,0.000248,2]
[380218751,1755613888138,-155.45,0.00024816,7]
[380218752,1755613888148,-960.0,0.00024817,2]
[380218753,1755613888158,-586.70464481,0.00024823,2]
[380218754,1755613888168,-10237.67817977,0.00024852,2]
[380218755,1755613888178,-1107.7,0.00024875,7]
[380218756,1755613888188,-822.35681339,0.000249,2]
[380218757,1755613888199,-822.35681331,0.000249,2]
[380218758,1755613888209,-822.35681331,0.000249,2]
[380218759,1755613888219,-822.35681331,0.000249,2]
[380218760,1755613888229,-822.35681331,0.000249,2]
[380218761,1755613888239,-822.35681331,0.000249,2]
[380218762,1755613888249,-822.35681331,0.000249,2]
[380218763,1755613888266,-705654.735372,0.000249,2]
[380218764,1755613888277,-155.50337703,0.00024916,7]
[380218765,1755613888286,-514.56,0.00024931,2]
[380218766,1755613888297,-2620.24,0.00024931,2]
[380218767,1755613888307,-1891.29,0.00024931,2]
[380218768,1755613888317,-547.4,0.00024931,2]
[380218769,1755613888328,-533.31,0.00024931,2]
[380218770,1755613888338,-732.56,0.00024931,2]
[380218771,1755613888353,-480.0,0.00024931,2]
[380218772,1755613888363,-506.69,0.00024931,2]
[380218773,1755613888374,-583.2,0.00024931,2]
[380218774,1755613888384,-502.16909237,0.00024931,2]
[380218775,1755613888394,-1286.2,0.00024931,2]
[380218776,1755613888404,-1476.73,0.00024931,2]
[380218777,1755613888415,-614.35,0.00024931,2]
[380218778,1755613888425,-1204.0,0.00024931,2]
[380218779,1755613888435,-584.32,0.00024931,2]
[380218780,1755613888444,-1958.67,0.00024931,2]
[380218781,1755613888454,-991.24,0.00024931,2]
[380218782,1755613888464,-6821.03,0.00024931,2]
[380218783,1755613888474,-519.5,0.00024931,2]
[380218784,1755613888484,-528.46,0.00024931,2]
[380218785,1755613888494,-571.37,0.00024931,2]
[380218786,1755613888509,-2319.3,0.00024931,2]
[380218787,1755613888630,-9592.27,0.00024931,2]
[380218788,1755613888641,-665.67,0.00024931,2]
[380218789,1755613888651,-868.36,0.00024931,2]
[380218790,1755613888660,-1062.99,0.00024931,2]
[380218791,1755613888670,-597.86,0.00024931,2]
[380218792,1755613888680,-666.95,0.00024931,2]
[380218793,1755613888689,-2568.04,0.00024931,2]
[380218794,1755613888699,-534.72,0.00024931,2]
[380218795,1755613888708,-774.12,0.00024931,2]
[380218796,1755613888718,-1648.41,0.00024931,2]
[380218797,1755613888727,-646.52,0.00024931,2]
[380218798,1755613888736,-1496.02,0.00024931,2]
[380218799,1755613888745,-1947.41,0.00024931,2]
[380218800,1755613888759,-1530.12,0.00024931,2]
[380218801,1755613888769,-1222.28,0.00024931,2]
[380218802,1755613888778,-534.48,0.00024931,2]
[380218803,1755613888787,-726.33,0.00024931,2]
[380218804,1755613888796,-603.12,0.00024931,2]
[380218805,1755613888806,-1170.35,0.00024931,2]
[380218806,1755613888815,-480.0,0.00024931,2]
[380218807,1755613888825,-1177.29,0.00024931,2]
[380218808,1755613888835,-1014.46,0.00024931,2]
[380218809,1755613888844,-722.89,0.00024931,2]
[380218810,1755613888854,-936.91,0.00024931,2]
[380218811,1755613888864,-3243.1,0.00024931,2]
[380218812,1755613888874,-1029.92,0.00024931,2]
[380218813,1755613888884,-1138.77,0.00024931,2]
[380218814,1755613888893,-977.82,0.00024931,2]
[380218815,1755613888903,-1153.09,0.00024931,2]
[380218816,1755613888912,-932.49,0.00024931,2]
[380218817,1755613888921,-967.55,0.00024931,2]
[380218818,1755613888931,-885.39,0.00024931,2]
[380218819,1755613888941,-2882.8,0.00024931,2]
[380218820,1755613888950,-513.1,0.00024931,2]
[380218821,1755613888960,-3841.02,0.00024931,2]
[380218822,1755613888969,-493.52,0.00024931,2]
[380218823,1755613888979,-846.97,0.00024931,2]
[380218824,1755613888989,-645.92,0.00024931,2]
[380218825,1755613888998,-570.68,0.00024931,2]
[380218826,1755613889013,-1307.34,0.00024931,2]
[380218827,1755613889022,-1084.74,0.00024931,2]
[380218828,1755613889032,-518.17,0.00024931,2]
[380218829,1755613889046,-665.98,0.00024931,2]
[380218830,1755613889056,-486.91,0.00024931,2]
[380218831,1755613889066,-2187.7,0.00024931,2]
[380218832,1755613889076,-685.15,0.00024931,2]
[380218833,1755613889085,-1639.56,0.00024931,2]
[380218834,1755613889098,-869.33,0.00024931,2]
[380218835,1755613889115,-777.85,0.00024931,2]
[380218836,1755613889124,-11332.24,0.00024931,2]
[380218837,1755613889134,-1521.65,0.00024931,2]
[380218838,1755613889144,-691.74,0.00024931,2]
[380218839,1755613889154,-2082.42,0.00024931,2]
[380218840,1755613889164,-1024.36,0.00024931,2]
[380218841,1755613889173,-785.88,0.00024931,2]
[380218842,1755613889183,-806.64,0.00024931,2]
[380218843,1755613889193,-209.62268885,0.00024931,2]
[380218844,1755613889202,-897.44,0.00024931,2]
[380218845,1755613889211,-167.0,0.00024932,60]
[380218846,1755613889221,-583.0,0.00024932,2]
[380218847,1755613889231,-500.0,0.00024932,2]
[380218848,1755613889241,-1501.0,0.00024938,2]
[380218849,1755613889256,-1107.7,0.00024975,7]
[380218850,1755613889265,-822.35681331,0.00024976,2]
[380218851,1755613889275,-1445.17696723,0.00024978,8]
[380218852,1755613889285,-4000.0,0.00025,7]
[380218853,1755613889294,-28606.6419746,0.00025,2]
[380218854,1755613889305,-420466.59376823,0.00025,7]
[380218855,1755613889314,-163.9,0.00025,14]
[380218856,1755613889324,-2930.10127563,0.00025,2]
[380218857,1755613889333,-9220.29828814,0.00025,2]
[380218858,1755613889349,-1067.6593839,0.00025,2]
[380218859,1755613889359,-2629.14798236,0.00025,2]
[380218860,1755613889368,-208.46466899,0.00025,2]
[380218861,1755613889380,-359.87577821,0.00025,2]
[380218862,1755613889391,-553.69109485,0.00025,2]
[380218863,1755613889400,-500.0,0.00025,2]
[380218864,1755613889410,-600.0,0.00025,2]
[380218865,1755613889420,-162.77745937,0.00025,4]
[380218866,1755613889429,-1000.0,0.00025,3]
[380218867,1755613889439,-160.0,0.00025,3]
[380218868,1755613889448,-160.0,0.00025,30]
[380218869,1755613889457,-1990.946546,0.00025,5]
[380218870,1755613889466,-232.21311493,0.00025,30]
[380218871,1755613889475,-216.8835046,0.00025,30]